Cogmind - Beta 15 @@@ ROGUE MODE // 2025.06.04 @ 02:49:40 Player: CL-1C0 Result: Self-destructed Performance ------------- Evolutions (2) 1000 Regions Visited (3) 600 Robots Destroyed (1) 5 Value Destroyed (5) 5 Prototype IDs (0) 0 Alien Tech Used (0) 0 Bonus (0) 0 TOTAL SCORE: 1610 Bonus ------- None Cogmind --------- Core Integrity 550/550 Matter 280/300 Energy 100/100 System Corruption 0% Temperature Cool (1) Movement Flying (35) Location -8/Materials Parts ------- > --- POWER (1) -------- (None) > --- PROPULSION (2) --- VTOL Module > --- UTILITY (6) ------ (None) > --- WEAPON (2) ------- (None) > --- INVENTORY (5) ---- Assault Cannon Peak State ------------ > --- POWER ------------ (None) > --- PROPULSION ------- VTOL Module > --- UTILITY ---------- (None) > --- WEAPON ----------- Assault Cannon > --- INVENTORY -------- (None) [Rating: 5] Favorites ----------- Power None Propulsion Light Treads Treads Light Treads Flight Unit VTOL Module Utility None Weapon Assault Cannon Ballistic Cannon Assault Cannon Build | -11 -10 -9 -8 ------- Run | Yrd Mat Mat Mat Slots Evolved 4 | . . 2 2 Power . | . . . . Propulsion . | . . . . Utility 4 | . . 2 2 Weapon . | . . . . Parts Attached 3 | 1 . . 2 Power . | . . . . Engine . | . . . . Core . | . . . . Reactor . | . . . . Propulsion 2 | 1 . . 1 Treads 1 | 1 . . . Leg . | . . . . Wheel . | . . . . Hover . | . . . . Flight 1 | . . . 1 Utility . | . . . . Device . | . . . . Storage . | . . . . Processor . | . . . . Hackware . | . . . . Protection . | . . . . Artifact . | . . . . Weapon 1 | . . . 1 Energy Gun . | . . . . Energy Cannon . | . . . . Ballistic Gun . | . . . . Ballistic Cannon 1 | . . . 1 Launcher . | . . . . Special Weapon . | . . . . Impact Weapon . | . . . . Slashing Weapon . | . . . . Piercing Weapon . | . . . . Special Melee Weapon . | . . . . Unidentified Prototypes . | . . . . Parts Lost 1 | . . 1 . Power . | . . . . Propulsion 1 | . . 1 . Utility . | . . . . Weapon . | . . . . Highest Loss Streak 1 | . . 1 . To Critical Strikes . | . . . . Average Backups . | 4 . . 1 Power . | 1 . . . Propulsion . | 2 . . . Utility . | . . . . Weapon . | 1 . . . Tool/Special . | . . . . Unused Backups . | . . . . Power . | . . . . Propulsion . | . . . . Utility . | . . . . Weapon . | . . . . Tool/Special . | . . . . Average Slot Usage (%) 10 | . 14 9 5 Treads 8 | . 14 9 . Peak Build Rating 5 | 1 1 1 5 Average Rating . | 1 1 . 1 On Entrance 2 | 6 1 1 . Naked Turns 28 | . . 2 26 Heaviest Build . | . . . . Greatest Support 20 | 3 20 3 4 Greatest Overweight (x) . | . . . . Average Overweight (x) . | . . . . Largest Inventory Capacity 5 | 5 5 5 5 Average Capacity 5 | 5 5 5 5 Most Carried 4 | 4 . 1 2 Average Carried . | 2 . . 1 Final Capacity 5 | 5 5 5 5 Final Carried 1 | . . 1 1 Class Distribution -------------------- 100% | Mutant Dominant Class ---------------- Mutant | -10/Materials Mutant | -9/Materials Mutant | -8/Materials Resources | -11 -10 -9 -8 ----------- Run | Yrd Mat Mat Mat Matter Collected 208 | 200 3 . 5 Remotely . | . . . . Salvage Created 3 | . 3 . . Parts 3 | . 3 . . Haulers Intercepted . | . . . . Recyclers Shooed . | . . . . Parts Field Recycled . | . . . . Retrieved Matter . | . . . . Parts Self-Destructed . | . . . . Prevented . | . . . . Kills | -11 -10 -9 -8 ------- Run | Yrd Mat Mat Mat Combat Hostiles Destroyed . | . . . . Classes Destroyed 1 | . 1 . . Builder 1 | . 1 . . Best Kill Streak 1 | . 1 . . Combat Bots Only . | . . . . Max Kills in Single Turn 1 | . 1 . . Gunslinging . | . . . . Exploded . | . . . . Melee . | . . . . Uniques/NPCs Destroyed . | . . . . Combat | -11 -10 -9 -8 -------- Run | Yrd Mat Mat Mat Hostile Shots Fired 35 | . 5 26 4 Missed 15 | . 3 9 3 Hits 20 | . 2 17 1 Projectile 20 | . 2 17 1 Damage Taken 246 | . 25 211 10 Core 93 | . . 93 . Absorbed by Shields . | . . . . Core Remaining (%) 92 | 100 100 76 . Volleys Fired 1 | . . . 1 Largest 1 | . . . 1 Hottest 37 | . . . 37 Shots Fired 1 | . . . 1 Gun . | . . . . Cannon 1 | . . . 1 Launcher . | . . . . Special . | . . . . Kinetic 1 | . . . 1 Thermal . | . . . . Explosive . | . . . . Electromagnetic . | . . . . Robot Hit Streak 1 | . . . 1 Robot Miss Streak . | . . . . Penetration Max . | . . . . Secondary Targets . | . . . . Shots Hit Robots 1 | . . . 1 Core Hits . | . . . . Critical Kills . | . . . . Critical Parts Destroyed . | . . . . Critical Strikes . | . . . . Melee Attacks . | . . . . Impact . | . . . . Slashing . | . . . . Piercing . | . . . . Sneak Attacks . | . . . . Combat Hostiles . | . . . . Follow-up Attacks . | . . . . Damage Inflicted 31 | . 1 4 26 Guns . | . . . . Cannons 26 | . . . 26 Explosions . | . . . . Melee . | . . . . Ramming 5 | . 1 4 . Kinetic 26 | . . . 26 Thermal . | . . . . Explosive . | . . . . Electromagnetic . | . . . . Impact . | . . . . Slashing . | . . . . Piercing . | . . . . Highest Corruption . | . . . . Average Corruption . | . . . . Corruption Purged . | . . . . Corruption Blocked . | . . . . Overload Shots . | . . . . Overflow Damage . | . . . . Projectiles . | . . . . Explosions . | . . . . Melee . | . . . . Knockbacks 1 | . . . 1 Impact . | . . . . Kinetic 1 | . . . 1 Secondary . | . . . . Self-Inflicted Damage . | . . . . Shots . | . . . . Rammed 6 | . 1 5 . Targets Rammed 7 | . 2 5 . Kicked . | . . . . Crushed 1 | . 1 . . Highest Temperature . | . . . . Average Temperature . | . . . . Received Heat Transfer 75 | . 15 60 . Siege Activations . | . . . . Martial Activations . | . . . . Shielding Activations . | . . . . Robots Disrupted . | . . . . Combat Hostiles . | . . . . Robots Corrupted . | . . . . Combat Hostiles . | . . . . Parts Fried . | . . . . Impact Corruptions . | . . . . Robots Melted . | . . . . Combat Hostiles . | . . . . Parts Melted . | . . . . Heat Transferred . | . . . . Parts Sabotaged . | . . . . Parts Stolen . | . . . . Parts Stripped . | . . . . Power Chain Reactions . | . . . . Alert | -11 -10 -9 -8 ------- Run | Yrd Mat Mat Mat Maximum Alert Level . | . . . . Low Security (%) 100 | 100 100 100 100 Level 1 . | . . . . Level 2 . | . . . . Level 3 . | . . . . Level 4 . | . . . . Level 5 . | . . . . High Security . | . . . . Max Security . | . . . . Peak Influence 50 | . 20 50 12 Initial 12 | . . 1 12 Average 8 | . 9 9 6 Influence Increases 103 | . 35 68 . Destroy 0b10 Robot/NC 5 | . 5 . . Successful Hack 23 | . . 23 . Partial Spotted 15 | . 15 . . Lose Combat Pursuer 60 | . 15 45 . Influence Decreases 103 | . 30 43 30 Entered New Map 22 | . . 4 18 Time Decay 71 | . 30 29 12 Lost Part 10 | . . 10 . Squads Dispatched 5 | . 2 3 . Investigation 1 | . . 1 . Extermination . | . . . . Reinforcement 4 | . 2 2 . Assault . | . . . . Garrison . | . . . . Intercept . | . . . . Searches Triggered . | . . . . Construction Impeded . | . . . . Haulers Reinforced . | . . . . Active Scanning Responses . | . . . . Cargo Convoy Interrupts . | . . . . Stealth | -11 -10 -9 -8 --------- Run | Yrd Mat Mat Mat Distress Signals 2 | . . 2 . Communications Jammed . | . . . . Distress Signals . | . . . . Times Spotted 24 | . 6 15 3 Peak Tracking Total 10 | . 3 10 3 Tactical Retreats 2 | . 1 1 . Traps | -11 -10 -9 -8 ------- Run | Yrd Mat Mat Mat Traps Triggered 1 | . . 1 . Indirectly . | . . . . Trap Hack Attempts . | . . . . Triggered . | . . . . Disarmed . | . . . . Reprogrammed . | . . . . Reused . | . . . . Traps Extracted . | . . . . Installed . | . . . . Triggered . | . . . . Machines | -11 -10 -9 -8 ---------- Run | Yrd Mat Mat Mat Machines Disabled . | . . . . Max in Single Turn . | . . . . Machines Repaired . | . . . . Machines Dismantled . | . . . . Machines Sabotaged . | . . . . Overloaded Fab Kills . | . . . . Hacking | -11 -10 -9 -8 --------- Run | Yrd Mat Mat Mat Machines Accessed 3 | . . 2 1 Terminals 3 | . . 2 1 Fabricators . | . . . . Repair Stations . | . . . . Recycling Units . | . . . . Scanalyzers . | . . . . Garrison Access . | . . . . Total Hacks 12 | . . 10 2 Successful 5 | . . 4 1 Failed 7 | . . 6 1 Catastrophic 1 | . . . 1 Database Lockouts . | . . . . Manual 6 | . . 6 . Terminals 12 | . . 10 2 Fabricators . | . . . . Repair Stations . | . . . . Recycling Units . | . . . . Scanalyzers . | . . . . Garrison Access . | . . . . Terminal Hacks 5 | . . 4 1 Level Access Points 1 | . . 1 . Emergency Access Points 1 | . . 1 . Terminal Index 1 | . . 1 . Hauler Manifests 1 | . . . 1 Zone Layout 1 | . . 1 . Fabricator Hacks . | . . . . Repair Station Hacks . | . . . . Recycling Unit Hacks . | . . . . Scanalyzer . | . . . . Garrison Access Hacks . | . . . . Unauthorized Hacks . | . . . . Terminals . | . . . . Fabricators . | . . . . Repair Stations . | . . . . Recycling Units . | . . . . Scanalyzers . | . . . . Garrison Access . | . . . . Data Cores Recovered . | . . . . Used . | . . . . Hacking Detections 3 | . . 2 1 Full Trace Events . | . . . . Feedback Events . | . . . . Feedback Blocked . | . . . . Robot Schematics Acquired . | . . . . Robots Built . | . . . . Authchips . | . . . . Time . | . . . . Total Robot Build Rating . | . . . . Part Schematics Acquired . | . . . . Parts Built . | . . . . Authchips . | . . . . Time . | . . . . Total Part Build Rating . | . . . . Parts Repaired . | . . . . Time . | . . . . Parts Recycled . | . . . . Recycled Matter . | . . . . Retrieved Matter . | . . . . Retrieved Components . | . . . . Parts Scanalyzed . | . . . . Part Schematics Acquired . | . . . . Parts Damaged . | . . . . Bothacking | -11 -10 -9 -8 ------------ Run | Yrd Mat Mat Mat Used RIF Installer . | . . . . Robots Hacked . | . . . . Non-combat . | . . . . Combat . | . . . . Robot Hacks Applied . | . . . . Relay Couplers Released . | . . . . Fabnet Peak Effective % . | . . . . Robots Rewired . | . . . . Allies Hacked . | . . . . Hacks Repelled . | . . . . Allies | -11 -10 -9 -8 -------- Run | Yrd Mat Mat Mat Total Allies . | . . . . Largest Group . | . . . . Highest-Rated Group . | . . . . Highest-Rated Ally . | . . . . Total Orders . | . . . . Ally Attacks . | . . . . Total Damage . | . . . . Kills . | . . . . Allies Corrupted . | . . . . Allies Melted . | . . . . Intel | -11 -10 -9 -8 ------- Run | Yrd Mat Mat Mat Active Infowar (turns) . | . . . . Robot Analysis Total . | . . . . Derelict Logs Recovered . | . . . . Drone Launches . | . . . . Drone Recoveries . | . . . . Exploration | -11 -10 -9 -8 ------------- Run | Yrd Mat Mat Mat Turns Passed 193 | 3 62 85 43 Spaces Moved 349 | 1 113 152 83 Core 312 | 1 112 152 47 Treads 1 | . 1 . . Legs . | . . . . Wheels . | . . . . Hover . | . . . . Flight 36 | . . . 36 Fastest Speed 35 | 50 50 50 35 Average Speed 48 | 50 50 50 43 Slowest Speed 160 | 50 160 50 50 Overloaded Moves . | . . . . Propulsion Burnouts . | . . . . Robots Hopped 3 | . . . 3 Potential Cave-ins . | . . . . Cave-ins Triggered . | . . . . Exploration Rate (%) 15 | 2 31 20 10 Regions Visited 3 Branch Regions . Pre-discovered Areas . | . . . . Known Exits Taken 1 | . . 1 . Unknown Exits Taken 2 | 1 1 . . Scrap Searched . | . . . . Spaces Dug . | . . . . Terrain Destroyed . | . . . . Melee . | . . . . Projectile . | . . . . AOE . | . . . . Terrain Rammed . | . . . . Walls Destroyed . | . . . . Machines Disabled . | . . . . Actions | -11 -10 -9 -8 --------- Run | Yrd Mat Mat Mat Total 363 | 5 115 157 86 Wait 2 | . 1 . 1 Move 340 | . 112 151 77 Hop 3 | . . . 3 Pick Up 2 | . . 1 1 Fast Attach . | . . . . Attach 3 | 1 . . 2 Detach 1 | . . . 1 Swap . | . . . . Drop 4 | 4 . . . Fire 1 | . . . 1 Melee . | . . . . Ram . | . . . . Kick . | . . . . Crush 7 | . 2 5 . Escape Stasis . | . . . . Rewire . | . . . . Trap . | . . . . Miscellaneous . | . . . . Route ------- -11/Scrapyard -10/Materials -9/Materials (discovered 3 exits: *Mat x3) -8/Materials History --------- Turn | Location | Event 1 | -11/Scrapyard | Released all parts (6) 4 | -11/Scrapyard | Discovered new exit (range 0) 4 | -11/Scrapyard | Entered Materials 61 | -10/Materials | Discovered new exit (range 10) 66 | -10/Materials | Entered another Materials area 66 | -9/Materials | Evolved 2 slots: Utility x2 72 | -9/Materials | Identified exit to Materials 151 | -9/Materials | Entered another Materials area 151 | -8/Materials | Evolved 2 slots: Utility x2 194 | -8/Materials | Self-destructed Last Messages --------------- 6x Adv. Beam Cannon A-02 Transporter 5x Prc. Beam Rifle (2 escorts) A-02 Transporter 6x Nuclear Core A-02 Transporter 3x Enh. Autogun (2 escorts) A-02 Transporter 1x Hcp. Matter Pod 1x Missile Launcher 3x Hrd. Medium Armor Plating A-02 Transporter 1x Imp. VTOL Module 2x Imp. Medium Laser 3x Prc. Beam Rifle 00158_ Acquired Assault Cannon. 00179_ T-07 Excavator knocked back. 00183_ Acquired 5 matter. Map ----- +----------------------------------------------------+ | ????????????????????# #??????????????????? | | ????????????????????# ######/##??????????????????? | | ????????????????????# #??????????????????????????? | | ????????????????????# #??????????????????????????? | | ????????????????????# #??????????????????????????? | | ????????????????????# #??????????????????????????? | | ????????????????????# #??????????????????????????? | | ????????????????????# #??????????????????????????? | | ????????????????????# #??????????????????????????? | | ????????????????????# #??????????????????????????? | | ????????????????????# #??????????????????????????? | | ????????????????????# #??????????????????????????? | | ????????????????????# #??????????????????????????? | | ????????????????????# #??????????????????????????? | | ????????????????????# #??????????????????????????? | | ????????????????????# #??????????????????????????? | | ????????????#########/#??????????????????????????? | | ????????????# #??????????????????????????? | | ????????????# #??????????????????????????? | | ????????????# #??????????????????????????? | | ????????????# #??????????????????????????? | | ????????????# #??????????????????????????? | | ????????????# ###########????????????????? | | ????????????# # #????????????????? | | ????????????# # #????????????????? | | ????????????#######+#+# @ *!! #????????????????? | | ?????????????# # """ *! #????????????????? | | ?????????????# + """ *! #????????????????? | | ?????????????# # """ #????????????????? | | ?????????????# ### ## #????????????????? | | ?????????????# #?# ## #????????????????? | | ?????????????# #?# ############????????????????? | | ?????????????# #?# #???????????????????????????? | | ?????????????# ###+#######?????????????????????? | | ?????????????# ## ! #?????????????????????? | | ????????????## ## """#?????????????????????? | | ????????????# # ! """#?????????????????????? | | ????????????# T # """#?????????????????????? | | ????????????# "" + #?????????????????????? | | ????????????# # """#?????????????????????? | | ????????????# # """#?????????????????????? | | ????????????## ## """#?????????????????????? | | ?????????????# ## #?????????????????????? | | ?????????????# ###########?????????????????????? | | ?????????????# #???????????????????????????????? | | ?????????????# #???????????????????????????????? | | ?????????????#####???????????????????????????????? | | ?????????????????????????????????????????????????? | | ?????????????????????????????????????????????????? | | ?????????????????????????????????????????????????? | +----------------------------------------------------+ Best States ------------- Heat Dissipation 31 Energy Generation 5 Energy Capacity 100 Matter Stores 300 Matter Capacity 300 Sight Range 16 Terrain Scan Density 10 Evasion (%) 63 Recoil Reduction 1 Item Schematics ----------------- None Robot Schematics ------------------ None Fabricated ------------ Nothing Repaired ---------- Nothing Alien Tech Used ----------------- None Achievements -------------- None Challenges ------------ None Game ------ Seed PointMetafiberShifter Manual? 0 Play Time 00:04:21 Cumulative 521.4 hours Start 2025.06.04 @ 02:46:08 End 2025.06.04 @ 02:49:40 Sessions 1 Manual Loads 0 Difficulty Rogue Special Mode None Game No. 578 Rogue 578 Adventurer 0 Explorer 0 Win Type - Total 15 Types 9/0/5/1/0/0/0/0/0/0 Lore% 82 Gallery% 82 Achievement% 82 Wizard Run 0 Options --------- Layout 0 ASCII 0 Keyboard 0 Movement Numpad Keybinds 0 Fullscreen 1 Font 18/SmallcapsGlow Map View 76x50 Zoom Use 0% Tactical HUD 1 Map Filters NONE Filters NONE Steam 1 RUN: e2c2a618-9b18-4d62-bbf0-a0ecbc0467fd